fUST/lending_fUST_20260225
["ID","MTS","AMOUNT","RATE_DAILY","PERIOD"]
[406626526,1771990456429,-1000.0,0.0002,2]
[406626529,1771990457793,-1000.0,0.0002,2]
[406626532,1771990459264,-1000.0,0.0002,2]
[406626535,1771990460637,-1000.0,0.0002,2]
[406626538,1771990461962,-1000.0,0.0002,2]
[406626542,1771990463836,-1000.0,0.0002,2]
[406626544,1771990465290,-1000.0,0.0002,2]
[406626545,1771990466685,-1000.0,0.0002,2]
[406626546,1771990467993,-1000.0,0.0002,2]
[406626547,1771990469784,-1000.0,0.0002,2]
[406626548,1771990471314,-1000.0,0.0002,2]
[406626549,1771990473255,-1000.0,0.0002,2]
[406626550,1771990475045,-1000.0,0.0002,2]
[406626551,1771990476661,-1000.0,0.0002,2]
[406626552,1771990478303,-1000.0,0.0002,2]
[406626553,1771990480340,-1000.0,0.0002,2]
[406626554,1771990482127,-1000.0,0.0002,2]
[406626555,1771990483385,-1000.0,0.0002,2]
[406626556,1771990521681,-600.35914026,0.0002,2]
[406626557,1771990521707,-153.63494109,0.00021445,5]
[406626558,1771990521733,-246.00591865,0.00021636,2]
[406626559,1771990522784,-53.99408135,0.00021636,2]
[406626560,1771990522807,-946.00591865,0.00021636,2]
[406626561,1771990523834,-253.99408135,0.00021636,2]
[406626562,1771990523856,-366.40415741,0.00021637,2]
[406626563,1771990523880,-379.60176124,0.00021637,2]
[406626564,1771990525229,-120.39823876,0.00021637,2]
[406626565,1771990525251,-493.18288263,0.00021637,2]
[406626566,1771990525272,-386.41887861,0.00021637,2]
[406626567,1771990525670,-113.58112139,0.00021637,2]
[406626568,1771990525693,-500.0,0.00021637,2]
[406626569,1771990525716,-386.41887861,0.00021637,2]
[406626570,1771990525964,-113.58112139,0.00021637,2]
[406626571,1771990525986,-500.0,0.00021637,2]
[406626572,1771990526008,-386.41887861,0.00021637,2]
[406626573,1771990526692,-113.58112139,0.00021637,2]
[406626574,1771990526715,-500.0,0.00021637,2]
[406626575,1771990526738,-386.41887861,0.00021637,2]
[406626576,1771990526810,-113.58112139,0.00021637,2]
[406626577,1771990526833,-500.0,0.00021637,2]
[406626578,1771990526856,-386.41887861,0.00021637,2]
[406626579,1771990527219,-113.58112139,0.00021637,2]
[406626580,1771990527243,-500.0,0.00021637,2]
[406626581,1771990527267,-386.41887861,0.00021637,2]
[406626582,1771990527634,-113.58112139,0.00021637,2]
[406626583,1771990527819,-500.0,0.00021637,2]
[406626584,1771990527845,-386.41887861,0.00021637,2]
[406626585,1771990527967,-113.58112139,0.00021637,2]
[406626586,1771990527990,-500.0,0.00021637,2]
[406626587,1771990528012,-386.41887861,0.00021637,2]
[406626588,1771990528328,-113.58112139,0.00021637,2]
[406626589,1771990528349,-500.0,0.00021637,2]
[406626590,1771990528371,-386.41887861,0.00021637,2]
[406626591,1771990528639,-113.58112139,0.00021637,2]
[406626592,1771990528664,-500.0,0.00021637,2]
[406626593,1771990528687,-386.41887861,0.00021637,2]
[406626594,1771990529053,-113.58112139,0.00021637,2]
[406626595,1771990529075,-500.0,0.00021637,2]
[406626596,1771990529097,-386.41887861,0.00021637,2]
[406626597,1771990529535,-113.58112139,0.00021637,2]
[406626598,1771990529557,-500.0,0.00021637,2]
[406626599,1771990529579,-386.41887861,0.00021637,2]
[406626600,1771990529930,-113.58112139,0.00021637,2]
[406626601,1771990529952,-500.0,0.00021637,2]
[406626602,1771990529976,-386.41887861,0.00021637,2]
[406626603,1771990530436,-113.58112139,0.00021637,2]
[406626604,1771990530461,-500.0,0.00021637,2]
[406626605,1771990530483,-386.41887861,0.00021637,2]
[406626606,1771990530744,-113.58112139,0.00021637,2]
[406626607,1771990530766,-500.0,0.00021637,2]
[406626608,1771990530789,-386.41887861,0.00021637,2]
[406626609,1771990531137,-113.58112139,0.00021637,2]
[406626610,1771990531158,-500.0,0.00021637,2]
[406626611,1771990531179,-386.41887861,0.00021637,2]
[406626612,1771990531459,-113.58112139,0.00021637,2]
[406626613,1771990531482,-500.0,0.00021637,2]
[406626614,1771990531504,-386.41887861,0.00021637,2]
[406626615,1771990531872,-113.58112139,0.00021637,2]
[406626616,1771990531896,-500.0,0.00021637,2]
[406626617,1771990531919,-386.41887861,0.00021637,2]
[406626618,1771990532182,-263.73417587,0.00021637,2]
[406626619,1771990532206,-500.0,0.00021637,2]
[406626620,1771990532233,-236.26582413,0.00021637,2]
[406626621,1771990532558,-263.73417587,0.00021637,2]
[406626622,1771990532580,-500.0,0.00021637,2]
[406626623,1771990532606,-236.26582413,0.00021637,2]
[406626624,1771990532951,-263.73417587,0.00021637,2]
[406626625,1771990532974,-500.0,0.00021637,2]
[406626626,1771990532997,-236.26582413,0.00021637,2]
[406626627,1771990533260,-263.73417587,0.00021637,2]
[406626628,1771990533281,-500.0,0.00021637,2]
[406626629,1771990533302,-236.26582413,0.00021637,2]
[406626630,1771990533650,-263.73417587,0.00021637,2]
[406626631,1771990533673,-736.26582413,0.00021637,2]
[406626632,1771990533971,-212.01237992,0.00021637,2]
[406626633,1771990534161,-787.98762008,0.00021637,2]
[406626634,1771990534399,-160.29058397,0.00021637,2]
[406626635,1771990534422,-839.70941603,0.00021637,2]
[406626636,1771990534883,-108.56878802,0.00021637,2]
[406626637,1771990534905,-891.43121198,0.00021637,2]
[406626638,1771990535287,-56.84699207,0.00021637,2]
[406626639,1771990535308,-943.15300793,0.00021637,2]
[406626640,1771990535601,-5.12519612,0.00021637,2]
[406626641,1771990535624,-948.27820405,0.00021637,2]
[406626642,1771990535647,-46.59659983,0.00021637,2]
[406626643,1771990536027,-901.68160422,0.00021637,2]
[406626644,1771990536048,-98.31839578,0.00021637,2]
[406626645,1771990537462,-849.95980827,0.00021637,2]
[406626646,1771990537486,-150.04019173,0.00021637,2]
[406626647,1771990538098,-798.23801232,0.00021637,2]
[406626648,1771990538121,-201.76198768,0.00021637,2]
[406626649,1771990538390,-746.51621637,0.00021637,2]
[406626650,1771990538413,-253.48378363,0.00021637,2]
[406626651,1771990538811,-694.79442042,0.00021637,2]
[406626652,1771990538834,-305.20557958,0.00021637,2]
[406626656,1771990540471,-643.07262447,0.00021637,2]
[406626657,1771990540493,-356.92737553,0.00021637,2]
[406626658,1771990540882,-591.35082852,0.00021637,2]
[406626659,1771990540904,-408.64917148,0.00021637,2]
[406626660,1771990541115,-539.62903257,0.00021637,2]
[406626661,1771990541138,-460.37096743,0.00021637,2]
[406626662,1771990542366,-487.90723662,0.00021637,2]
[406626663,1771990542388,-512.09276338,0.00021637,2]
[406626664,1771990543320,-436.18544067,0.00021637,2]
[406626665,1771990543343,-563.81455933,0.00021637,2]
[406626668,1771990592427,-153.16957802,0.00021445,5]
[406626669,1771990592459,-158.89884543,0.00021445,5]
[406626670,1771990592489,-300.0,0.00021636,2]
[406626671,1771990592520,-384.46364472,0.00021637,2]
[406626672,1771990592545,-3.46793183,0.00021637,2]
[406626673,1771990593480,-944.81027222,0.00021637,2]
[406626674,1771990593504,-55.18972778,0.00021637,2]
[406626675,1771990594747,-893.08847627,0.00021637,2]
[406626676,1771990594771,-106.91152373,0.00021637,2]
[406626677,1771990595889,-841.36668032,0.00021637,2]
[406626678,1771990595917,-158.63331968,0.00021637,2]
[406626691,1771990646883,500.0,0.00041961,120]
[406626719,1771990946275,500.0,0.00041957,120]
[406626723,1771991218099,-153.16957801,0.00019007,2]
[406626724,1771991218120,-123.35577046,0.00019007,2]
[406626744,1771991246619,500.0,0.00041961,120]
[406626745,1771991250052,6663.88659001,0.00041961,30]
[406626748,1771991339267,-500.96137405,0.00013273,2]
[406626749,1771991339287,-621.59751772,0.00013273,2]
[406626750,1771991339307,-500.0,0.00013273,2]
[406626751,1771991339327,-500.0,0.00013273,2]
[406626752,1771991339346,-501.63820675,0.00013273,2]
[406626754,1771991383827,-506.74603336,0.00013273,2]
[406626755,1771991383848,-493.25396664,0.00013273,2]
[406626766,1771991432219,-260.09082019,0.0001314,2]
[406626777,1771991437959,-1993.45716909,0.0001314,2]
[406626778,1771991437969,-6.74603336,0.00013273,2]
[406626779,1771991437979,-304.23874713,0.00013273,2]
[406626780,1771991437991,-198.44942483,0.00013273,2]
[406626781,1771991438004,-257.9247,0.00019339,30]
[406626782,1771991438014,-1200.0,0.0002042,2]
[406626783,1771991438024,-365.71387292,0.00020421,2]
[406626784,1771991438035,-583.16611455,0.00020421,2]
[406626785,1771991438046,-75.11885671,0.00020421,2]
[406626786,1771991438056,-1169.11410895,0.00020421,2]
[406626787,1771991438066,-208.63159043,0.00020421,2]
[406626788,1771991438076,-119.48744272,0.00021012,2]
[406626819,1771991440373,-180.51255728,0.00021012,2]
[406626821,1771991440383,-515.4252826,0.00021015,2]
[406626823,1771991440393,-94.26093117,0.00021634,2]
[406626825,1771991440404,-997.15258188,0.00021634,2]
[406627002,1771991442107,-3.41037525,0.00021634,2]
[406627059,1771991548097,500.0,0.00041961,120]
[406627078,1771991847140,500.0,0.00041961,120]
[406627091,1771992146137,500.0,0.00041961,120]
[406627100,1771992282483,-638.81525253,0.00013273,2]
[406627101,1771992282506,-501.61040573,0.00013273,2]
[406627102,1771992282532,-162.19862334,0.00013273,2]
[406627103,1771992282556,-500.0,0.00013273,2]
[406627104,1771992282580,-608.0,0.00013273,2]
[406627105,1771992282754,-305.11716585,0.00013821,2]
[406627106,1771992282782,-372.0,0.00016116,2]
[406627107,1771992282808,-380.0012,0.00016117,120]
[406627108,1771992282831,-151.9503,0.00016117,120]
[406627109,1771992282854,-300.0,0.00018962,2]
[406627110,1771992282879,-500.0,0.00018962,2]
[406627111,1771992282903,-500.0,0.00018962,2]
[406627112,1771992282928,-500.0,0.00018962,2]
[406627113,1771992282952,-500.0,0.00018962,2]
[406627114,1771992282975,-500.0,0.00018962,2]
[406627115,1771992283000,-500.0,0.00018962,2]
[406627116,1771992283026,-500.0,0.00018962,2]
[406627117,1771992283052,-500.0,0.00018962,2]
[406627118,1771992283077,-500.0,0.00018962,2]
[406627119,1771992283101,-500.0,0.00018962,2]
[406627120,1771992283124,-500.0,0.00018962,2]
[406627121,1771992283148,-500.0,0.00018962,2]
[406627122,1771992283174,-80.30705255,0.00018962,2]
[406627123,1771992283674,-419.69294745,0.00018962,2]
[406627124,1771992283700,-500.0,0.00018962,2]
[406627125,1771992283724,-500.0,0.00018962,2]
[406627126,1771992283748,-500.0,0.00018962,2]
[406627127,1771992283772,-500.0,0.00018962,2]
[406627128,1771992283795,-500.0,0.00018962,2]
[406627129,1771992283819,-500.0,0.00018962,2]
[406627130,1771992283843,-500.0,0.00018962,2]
[406627131,1771992283866,-500.0,0.00018962,2]
[406627132,1771992283891,-500.0,0.00018962,2]
[406627133,1771992283917,-500.0,0.00018962,2]
[406627134,1771992283943,-500.0,0.00018962,2]
[406627135,1771992283968,-500.0,0.00018962,2]
[406627136,1771992283992,-500.0,0.00018962,2]
[406627137,1771992284016,-500.0,0.00018962,2]
[406627138,1771992284041,-500.0,0.00018962,2]
[406627139,1771992284066,-500.0,0.00018962,2]
[406627140,1771992284090,-500.0,0.00018962,2]
[406627141,1771992284114,-500.0,0.00018962,2]
[406627142,1771992284139,-500.0,0.00018962,2]
[406627143,1771992284163,-80.30705255,0.00018962,2]
[406627144,1771992284614,-419.69294745,0.00018962,2]
[406627145,1771992284640,-500.0,0.00018962,2]
[406627146,1771992284664,-425.75682718,0.00018962,2]
[406627147,1771992284690,-500.0,0.00018962,2]
[406627148,1771992284714,-500.0,0.00018962,2]
[406627149,1771992284738,-500.0,0.00018962,2]
[406627150,1771992284763,-500.0,0.00018962,2]
[406627151,1771992284787,-500.0,0.00018962,2]
[406627152,1771992284810,-500.0,0.00018962,2]
[406627153,1771992284834,-500.0,0.00018962,2]
[406627154,1771992284858,-500.0,0.00018962,2]
[406627155,1771992284882,-500.0,0.00018962,2]
[406627156,1771992284910,-500.0,0.00018962,2]
[406627157,1771992284935,-500.0,0.00018962,2]
[406627158,1771992284960,-500.0,0.00018962,2]
[406627159,1771992284984,-500.0,0.00018962,2]
[406627160,1771992285013,-450.0,0.00018962,2]
[406627161,1771992285038,-500.0,0.00018962,2]
[406627162,1771992285062,-500.0,0.00018962,2]
[406627163,1771992285219,-500.0,0.00018962,2]
[406627164,1771992285246,-204.55022537,0.00018962,2]
[406627165,1771992285418,-295.44977463,0.00018962,2]
[406627166,1771992285442,-500.0,0.00018962,2]
[406627167,1771992285465,-500.0,0.00018962,2]
[406627168,1771992285489,-2488.9589995,0.00018963,2]
[406627169,1771992285513,-6215.59122587,0.00018963,2]
[406627170,1771992285993,-10000.0,0.00018963,2]
[406627171,1771992363181,-300.0,0.0001896,2]
[406627172,1771992363209,-500.0,0.00018961,2]
[406627173,1771992363236,-500.0,0.00018961,2]
[406627174,1771992363264,-500.0,0.00018961,2]
[406627175,1771992363290,-400.0,0.00018961,2]
[406627248,1771992447330,500.0,0.00041961,120]
[406627249,1771992449097,-473.67327033,0.00017848,2]
[406627302,1771992607262,244.21,9.5e-05,2]
[406627303,1771992607855,244.21,9.5e-05,2]
[406627304,1771992608499,244.21,9.5e-05,2]
[406627305,1771992609524,244.21,9.5e-05,2]
[406627306,1771992610187,244.21,9.5e-05,2]
[406627307,1771992610717,244.21,9.6e-05,2]
[406627308,1771992611534,244.21,9.6e-05,2]
[406627309,1771992612154,244.21,9.6e-05,2]
[406627310,1771992613034,244.21,9.6e-05,2]
[406627311,1771992613811,244.21,9.6e-05,2]
[406627312,1771992614494,244.21,9.6e-05,2]
[406627316,1771992615172,244.21,9.6e-05,2]
[406627319,1771992615854,244.21,9.6e-05,2]
[406627322,1771992616372,244.21,9.6e-05,2]
[406627323,1771992616888,244.21,9.6e-05,2]
[406627324,1771992617716,244.21,9.7e-05,2]
[406627325,1771992618230,244.21,9.7e-05,2]
[406627326,1771992619114,244.21,9.7e-05,2]
[406627327,1771992619924,244.21,9.7e-05,2]
[406627328,1771992620428,244.21,9.7e-05,2]
[406627329,1771992621086,244.21,9.7e-05,2]
[406627330,1771992621749,244.21,9.7e-05,2]
[406627331,1771992622782,244.21,9.7e-05,2]
[406627332,1771992623441,244.21,9.7e-05,2]
[406627333,1771992624117,244.21,9.7e-05,2]
[406627334,1771992624792,244.21,9.8e-05,2]
[406627335,1771992625492,244.21,9.8e-05,2]
[406627336,1771992626152,244.21,9.8e-05,2]
[406627337,1771992626834,244.21,9.8e-05,2]
[406627338,1771992627508,244.21,9.8e-05,2]
[406627339,1771992628029,244.21,9.8e-05,2]
[406627340,1771992628535,244.21,9.8e-05,2]
[406627341,1771992629192,244.21,9.8e-05,2]
[406627342,1771992629989,244.21,9.8e-05,2]
[406627343,1771992630654,244.21,9.8e-05,2]
[406627344,1771992631188,244.21,9.9e-05,2]
[406627354,1771992631841,244.21,9.9e-05,2]
[406627357,1771992631943,-228.0007,0.00016117,120]
[406627358,1771992631952,-473.67327033,0.0001767,2]
[406627359,1771992631961,-78.45733273,0.0001767,2]
[406627360,1771992632053,-300.0,0.0001767,2]
[406627361,1771992632698,244.21,9.9e-05,2]
[406627362,1771992633090,244.21,9.9e-05,2]
[406627363,1771992633909,244.21,9.9e-05,2]
[406627364,1771992634901,244.21,9.9e-05,2]
[406627365,1771992635560,244.21,9.9e-05,2]
[406627366,1771992636233,244.21,9.9e-05,2]
[406627367,1771992636881,244.21,9.9e-05,2]
[406627368,1771992637550,244.21,9.9e-05,2]
[406627376,1771992638038,-301.54266727,0.0001767,2]
[406627377,1771992638048,-206.5207753,0.00018028,2]
[406627378,1771992638057,-826.08310119,0.00018028,2]
[406627379,1771992638066,-7.10893675,0.00018224,2]
[406627380,1771992638092,-269.37165833,0.00018224,2]
[406627381,1771992638102,-456.46908109,0.00018326,2]
[406627382,1771992638116,-188.03867091,0.0001871,2]
[406627383,1771992638125,-164.39422051,0.0001871,2]
[406627384,1771992638135,-300.0,0.00018903,2]
[406627385,1771992638144,-500.0,0.00018904,2]
[406627387,1771992638155,-500.0,0.00018904,2]
[406627389,1771992638165,-500.0,0.00018904,2]
[406627391,1771992638174,-500.0,0.00018904,2]
[406627392,1771992638183,-795.4011753,0.00018949,2]
[406627393,1771992638193,-344.60087338,0.00018959,2]
[406627394,1771992638204,-155.39912662,0.00018959,2]
[406627395,1771992638214,-500.0,0.00018959,2]
[406627396,1771992638223,-500.0,0.00018959,2]
[406627397,1771992638233,-500.0,0.00018959,2]
[406627398,1771992638242,-200.0,0.00018959,4]
[406627399,1771992638251,-500.0,0.00018962,2]
[406627400,1771992638260,-243.59743354,0.00019014,2]
[406627401,1771992638272,-256.40256646,0.00019014,2]
[406627402,1771992638281,-316.18462047,0.00019014,2]
[406627403,1771992638291,-500.0,0.00019014,2]
[406627404,1771992638300,-473.48000028,0.00019014,2]
[406627405,1771992638337,244.21,0.0001,2]
[406627406,1771992638924,244.21,0.0001,2]
[406627407,1771992639592,244.21,0.0001,2]
[406627414,1771992640602,244.21,0.0001,2]
[406627518,1771992641696,244.21,0.0001,2]
[406627876,1771992646135,-26.51999972,0.00019014,2]
[406627877,1771992646144,-500.0,0.00019068,2]
[406627878,1771992646154,-505.46717913,0.00019068,2]
[406627879,1771992646163,-225.43917778,0.00019068,2]
[406627880,1771992646189,-126.74160825,0.00019068,2]
[406627881,1771992646198,-1754.29902426,0.00019078,2]
[406627882,1771992646207,-500.0,0.00019123,2]
[406627883,1771992646216,-500.0,0.00019175,2]
[406627884,1771992646225,-500.0,0.00019175,2]
[406627885,1771992646234,-577.57568272,0.00019175,2]
[406627886,1771992646243,-5426.39916897,0.00019176,2]
[406627887,1771992646252,-256.48291019,0.00019177,2]
[406627888,1771992646262,-500.0,0.00019178,2]
[406627889,1771992646271,-200.0,0.00019178,3]
[406627890,1771992646280,-200.0,0.00019178,3]
[406627891,1771992646288,-200.0,0.00019178,3]
[406627892,1771992646297,-200.0,0.00019178,3]
[406627893,1771992646306,-200.0,0.00019178,3]
[406627894,1771992646315,-200.0,0.00019178,3]
[406627895,1771992646324,-584.89040816,0.00019178,2]
[406627896,1771992646338,-584.89040816,0.00019178,2]
[406627897,1771992646347,-584.89040816,0.00019178,2]
[406627898,1771992646356,-584.89040816,0.00019178,2]
[406627899,1771992646366,-584.89040816,0.00019178,2]
[406627900,1771992646377,-584.89040816,0.00019178,2]
[406627901,1771992646386,-584.89040816,0.00019178,2]
[406627902,1771992646396,-584.89040816,0.00019178,2]
[406627903,1771992646406,-584.89040816,0.00019178,2]
[406627904,1771992646415,-584.89040816,0.00019178,2]
[406627905,1771992646424,-584.89040816,0.00019178,2]
[406627906,1771992646433,-584.89040816,0.00019178,2]
[406627907,1771992646442,-584.89040816,0.00019178,2]
[406627908,1771992646451,-584.89040816,0.00019178,2]
[406627909,1771992646459,-100.48036153,0.00019178,2]
[406627915,1771992747703,500.0,0.00041962,120]
[406627940,1771992971994,150.0,0.00041961,120]
[406627955,1771993046863,500.0,0.00041961,120]
[406627959,1771993095254,195.0,0.00041942,120]
[406627968,1771993346498,500.0,0.00041942,120]
[406627972,1771993646754,500.0,0.00041942,120]
[406627974,1771993718026,524.54795434,0.0001,2]
[406628182,1771993838611,-473.67327033,0.00015469,2]
[406628183,1771993838625,-250.25896733,0.00015625,2]
[406628184,1771993838638,-228.0007,0.00016117,120]
[406628185,1771993838650,-1105.92238032,0.00016459,2]
[406628186,1771993838661,-1001.03586931,0.00017325,2]
[406628187,1771993838677,-1825.87632435,0.00017354,2]
[406628188,1771993838688,-1000.0,0.00017841,2]
[406628189,1771993838699,-218.788378,0.00018028,2]
[406628190,1771993838715,-2488.32535572,0.00018074,2]
[406628191,1771993838725,-175.28618697,0.0001865,2]
[406628192,1771993838739,-300.0,0.0001865,2]
[406628193,1771993838751,-440.90763514,0.00018651,2]
[406628194,1771993838764,-793.63374325,0.00018651,2]
[406628195,1771993838776,-676.83675255,0.00018651,2]
[406628196,1771993838789,-1218.30615458,0.00018651,2]
[406628197,1771993838802,-1410.90443245,0.00018651,2]
[406628198,1771993838813,-2165.87760815,0.00018651,2]
[406628199,1771993838823,-747.75433669,0.00018651,2]
[406628200,1771993838835,-1345.95780605,0.00018651,2]
[406628201,1771993838847,-2392.81387742,0.00018651,2]
[406628202,1771993838859,-3735.03291179,0.0001876,2]
[406628203,1771993838871,-211.1289108,0.00018904,2]
[406628204,1771993838885,-519.0,0.00018904,2]
[406628205,1771993838897,-500.0,0.00018904,2]
[406628206,1771993838908,-500.0,0.00018904,2]
[406628207,1771993838921,-500.0,0.00018904,2]
[406628208,1771993838932,-500.0,0.00018904,2]
[406628209,1771993838944,-404.03463806,0.00018922,2]
[406628210,1771993838957,-519.0,0.00018959,2]
[406628211,1771993838968,-500.0,0.00018959,2]
[406628212,1771993838979,-500.0,0.00018959,2]
[406628213,1771993838990,-500.0,0.00018959,2]
[406628214,1771993839003,-500.0,0.00018959,2]
[406628215,1771993839014,-868.66,0.00019,2]
[406628216,1771993839025,-519.0,0.00019014,2]
[406628217,1771993839035,-390.50632196,0.00019014,2]
[406628218,1771993839046,-500.0,0.00019014,2]
[406628219,1771993839057,-500.0,0.00019014,2]
[406628220,1771993839067,-500.0,0.00019014,2]
[406628221,1771993839078,-2252.33070595,0.00019026,2]
[406628222,1771993839089,-519.0,0.00019068,2]
[406628223,1771993839099,-500.0,0.00019068,2]
[406628224,1771993839110,-500.0,0.00019068,2]
[406628225,1771993839120,-500.0,0.00019068,2]
[406628226,1771993839132,-5258.43413576,0.00019078,2]
[406628227,1771993839143,-500.0,0.0001911,2]
[406628228,1771993839154,-500.0,0.0001911,2]
[406628229,1771993839164,-179.53803713,0.0001911,2]
[406628230,1771993839174,-214.31397514,0.0001911,2]
[406628231,1771993839650,-350.46445323,0.0001911,2]
[406628232,1771993839660,-518.45438159,0.0001911,2]
[406628233,1771993839672,-500.0,0.00019111,2]
[406628234,1771993839684,-631.08116518,0.00019111,2]
[406628236,1771993839696,-4899.48418262,0.00019111,2]
[406628237,1771993839707,-30711.3567155,0.00019111,2]
[406628239,1771993839719,-457.79796,0.00019111,2]
[406628240,1771993839730,-3000.0,0.00019111,2]
[406628241,1771993839740,-3000.0,0.00019111,2]
[406628242,1771993839751,-3000.0,0.00019111,2]
[406628243,1771993839762,-3000.0,0.00019111,2]
[406628244,1771993839772,-3000.0,0.00019111,2]
[406628245,1771993839783,-2726.698968,0.00019111,2]
[406628246,1771993839793,-519.0,0.00019123,2]
[406628247,1771993839803,-500.0,0.00019123,2]
[406628248,1771993839813,-500.0,0.00019123,2]
[406628249,1771993839823,-231.09589226,0.00019123,2]
[406628250,1771993839834,-188.214,0.00019177,2]
[406628251,1771993839844,-500.0,0.00019177,2]
[406628252,1771993839855,-500.0,0.00019177,2]
[406628253,1771993839864,-500.0,0.00019177,2]
[406628254,1771993839878,-795.8,0.00019177,2]
[406628255,1771993839888,-795.8,0.00019177,2]
[406628256,1771993839898,-795.8,0.00019177,2]
[406628257,1771993839907,-220.83317959,0.00019177,2]
[406628258,1771993839917,-181.95315025,0.00019177,2]
[406628259,1771993839927,-500.0,0.00019177,2]
[406628260,1771993839936,-500.0,0.00019177,2]
[406628261,1771993839946,-500.0,0.00019177,2]
[406628262,1771993839957,-500.0,0.00019177,2]
[406628263,1771993839966,-500.0,0.00019177,2]
[406628264,1771993839975,-500.0,0.00019177,2]
[406628265,1771993839985,-519.0,0.00019178,2]
[406628266,1771993839995,-500.0,0.00019178,2]
[406628267,1771993840005,-500.0,0.00019178,2]
[406628268,1771993840015,-188.28026825,0.00019178,2]
[406628269,1771993840027,-502.0009474,0.00019178,2]
[406628270,1771993840039,-502.0009474,0.00019178,2]
[406628271,1771993840049,-502.0009474,0.00019178,2]
[406628272,1771993840058,-502.0009474,0.00019178,2]
[406628273,1771993840068,-502.0009474,0.00019178,2]
[406628274,1771993840078,-502.0009474,0.00019178,2]
[406628275,1771993840090,-502.0009474,0.00019178,2]
[406628276,1771993840101,-502.0009474,0.00019178,2]
[406628277,1771993840113,-502.0009474,0.00019178,2]
[406628278,1771993840124,-502.0009474,0.00019178,2]
[406628279,1771993840135,-502.0009474,0.00019178,2]
[406628280,1771993840146,-502.0009474,0.00019178,2]
[406628281,1771993840159,-502.0009474,0.00019178,2]
[406628282,1771993840169,-502.0009474,0.00019178,2]
[406628283,1771993840180,-502.0009474,0.00019178,2]
[406628284,1771993840190,-502.0009474,0.00019178,2]
[406628285,1771993840201,-502.0009474,0.00019178,2]
[406628286,1771993840212,-502.0009474,0.00019178,2]
[406628287,1771993840223,-502.0009474,0.00019178,2]
[406628288,1771993840232,-502.0009474,0.00019178,2]
[406628289,1771993840242,-502.0009474,0.00019178,2]
[406628290,1771993840252,-502.0009474,0.00019178,2]
[406628292,1771993840263,-502.0009474,0.00019178,2]
[406628294,1771993840272,-502.0009474,0.00019178,2]
[406628296,1771993840284,-502.0009474,0.00019178,2]
[406628297,1771993840293,-502.0009474,0.00019178,2]
[406628298,1771993840303,-502.0009474,0.00019178,2]
[406628299,1771993840312,-502.0009474,0.00019178,2]
[406628300,1771993840322,-502.0009474,0.00019178,2]
[406628301,1771993840331,-502.0009474,0.00019178,2]
[406628302,1771993840341,-502.0009474,0.00019178,2]
[406628303,1771993840350,-502.0009474,0.00019178,2]
[406628304,1771993840360,-502.0009474,0.00019178,2]
[406628306,1771993840370,-502.0009474,0.00019178,2]
[406628308,1771993840379,-502.0009474,0.00019178,2]
[406628310,1771993840389,-502.0009474,0.00019178,2]
[406628311,1771993840398,-502.0009474,0.00019178,2]
[406628312,1771993840408,-502.0009474,0.00019178,2]
[406628313,1771993840417,-502.0009474,0.00019178,2]
[406628314,1771993840427,-502.0009474,0.00019178,2]
[406628315,1771993840438,-502.0009474,0.00019178,2]
[406628316,1771993840448,-502.0009474,0.00019178,2]
[406628317,1771993840458,-502.0009474,0.00019178,2]
[406628318,1771993840468,-502.0009474,0.00019178,2]
[406628319,1771993840477,-502.0009474,0.00019178,2]
[406628320,1771993840487,-502.0009474,0.00019178,2]